[Event "*** Titled Tuesday Blitz"]
[Site "Chess.com"]
[Date "2021.03.02"]
[Round "2"]
[White "kingofthenil"]
[Black "zeitnot2006"]
[Result "1-0"]
[WhiteElo "2848"]
[BlackElo "2537"]
[TimeControl "180+1"]
[EndTime "10:19:11 PST"]
[Termination "kingofthenil won by resignation"]

1. e4 {[%clk 0:03:00.9]} 1... c5 {[%clk 0:02:59.2]} 2. d3 {[%clk 0:03:01.1]}
2... b6 {[%clk 0:02:53.9]} 3. g3 {[%clk 0:03:01.3]} 3... Bb7 {[%clk 0:02:54.8]}
4. Bg2 {[%clk 0:03:01.8]} 4... g6 {[%clk 0:02:54.7]} 5. f4 {[%clk 0:03:01.9]}
5... Bg7 {[%clk 0:02:55.6]} 6. Nf3 {[%clk 0:03:02.1]} 6... d5 {[%clk 0:02:56.1]}
7. exd5 {[%clk 0:03:00.7]} 7... Qxd5 {[%clk 0:02:54.2]} 8. Nc3 {[%clk
0:03:00.9]} 8... Qd7 {[%clk 0:02:53.8]} 9. O-O {[%clk 0:02:59.4]} 9... Nh6
{[%clk 0:02:52.6]} 10. Ne4 {[%clk 0:02:48.7]} 10... Nc6 {[%clk 0:02:48.3]} 11.
c3 {[%clk 0:02:47.6]} 11... Rd8 {[%clk 0:02:47.2]} 12. Nf2 {[%clk 0:02:41.9]}
12... O-O {[%clk 0:02:46.2]} 13. Qe2 {[%clk 0:02:41.1]} 13... Ba6 {[%clk
0:02:44.2]} 14. Rd1 {[%clk 0:02:39.6]} 14... e6 {[%clk 0:02:44.2]} 15. g4 {[%clk
0:02:21.5]} 15... f5 {[%clk 0:02:35.1]} 16. h3 {[%clk 0:01:52.2]} 16... Rfe8
{[%clk 0:02:26.2]} 17. Be3 {[%clk 0:01:45.4]} 17... e5 {[%clk 0:02:20.4]} 18.
Nxe5 {[%clk 0:01:41]} 18... Nxe5 {[%clk 0:02:20.1]} 19. fxe5 {[%clk 0:01:41.9]}
19... Rxe5 {[%clk 0:02:17.8]} 20. Qf3 {[%clk 0:01:30.2]} 20... Nf7 {[%clk
0:02:08.6]} 21. Bf4 {[%clk 0:01:28.5]} 21... Re7 {[%clk 0:02:07.7]} 22. Qg3
{[%clk 0:01:24.8]} 22... Re2 {[%clk 0:02:02.5]} 23. Rd2 {[%clk 0:01:12.4]} 23...
Rde8 {[%clk 0:02:01.7]} 24. Qf3 {[%clk 0:00:41.6]} 24... Rxd2 {[%clk 0:01:55.4]}
25. Bxd2 {[%clk 0:00:42.5]} 25... Ne5 {[%clk 0:01:45.7]} 26. Qd5+ {[%clk
0:00:42.2]} 26... Qxd5 {[%clk 0:01:45.9]} 27. Bxd5+ {[%clk 0:00:41.9]} 27... Kf8
{[%clk 0:01:45.9]} 28. gxf5 {[%clk 0:00:38]} 28... Rd8 {[%clk 0:01:44.9]} 29. c4
{[%clk 0:00:30.8]} 29... gxf5 {[%clk 0:01:22.4]} 30. Rf1 {[%clk 0:00:30.4]}
30... Rxd5 {[%clk 0:01:12]} 31. cxd5 {[%clk 0:00:30.4]} 31... Nf3+ {[%clk
0:01:12.7]} 32. Kg2 {[%clk 0:00:24.9]} 32... Nxd2 {[%clk 0:01:13.2]} 33. Rd1
{[%clk 0:00:22.6]} 33... Bh6 {[%clk 0:01:11.9]} 34. Re1 {[%clk 0:00:12.6]} 34...
Kf7 {[%clk 0:00:51.8]} 35. Re5 {[%clk 0:00:09.8]} 35... Bc8 {[%clk 0:00:50.8]}
36. d6 {[%clk 0:00:07.8]} 36... Bg5 {[%clk 0:00:46.1]} 37. Kg3 {[%clk
0:00:04.8]} 37... Bf6 {[%clk 0:00:43.7]} 38. Re1 {[%clk 0:00:02.8]} 38... Bxb2
{[%clk 0:00:35.9]} 39. Re2 {[%clk 0:00:03.1]} 39... Bc3 {[%clk 0:00:26.1]} 40.
Nd1 {[%clk 0:00:03.4]} 40... Bb4 {[%clk 0:00:14.9]} 41. Re7+ {[%clk 0:00:03.6]}
41... Kf6 {[%clk 0:00:15.4]} 42. d7 {[%clk 0:00:04.3]} 42... Bxd7 {[%clk
0:00:14.9]} 43. Rxd7 {[%clk 0:00:05.2]} 43... h5 {[%clk 0:00:11.5]} 44. Rxa7
{[%clk 0:00:05.3]} 44... Nf1+ {[%clk 0:00:11.5]} 45. Kg2 {[%clk 0:00:04.6]}
45... Nd2 {[%clk 0:00:08.9]} 46. Rh7 {[%clk 0:00:04.8]} 46... Kg6 {[%clk
0:00:08.9]} 47. Rb7 {[%clk 0:00:05.4]} 47... Ba5 {[%clk 0:00:09.4]} 48. Ne3
{[%clk 0:00:05.2]} 48... Nb1 {[%clk 0:00:09.1]} 49. Nc4 {[%clk 0:00:05.4]} 49...
Nc3 {[%clk 0:00:08]} 50. Nxa5 {[%clk 0:00:05.4]} 50... bxa5 {[%clk 0:00:08.8]}
51. a3 {[%clk 0:00:05.4]} 51... Kg5 {[%clk 0:00:06.2]} 52. Rc7 {[%clk
0:00:05.9]} 52... Na4 {[%clk 0:00:04.6]} 53. Kf3 {[%clk 0:00:06.2]} 53... Nb2
{[%clk 0:00:04.5]} 54. Rxc5 {[%clk 0:00:05.5]} 54... Nxd3 {[%clk 0:00:03.3]} 55.
Rxa5 {[%clk 0:00:05.9]} 55... Nb2 {[%clk 0:00:03.4]} 56. Ra8 {[%clk 0:00:05]}
56... Nc4 {[%clk 0:00:04]} 57. Kg3 {[%clk 0:00:05.5]} 57... f4+ {[%clk
0:00:04.1]} 58. Kf3 {[%clk 0:00:06]} 58... Nd2+ {[%clk 0:00:04.1]} 59. Ke2
{[%clk 0:00:06.1]} 59... Ne4 {[%clk 0:00:04]} 60. a4 {[%clk 0:00:07]} 60... Kh4
{[%clk 0:00:04]} 61. Kf3 {[%clk 0:00:07.1]} 61... Ng5+ {[%clk 0:00:02]} 62. Kxf4
{[%clk 0:00:07.6]} 62... Nxh3+ {[%clk 0:00:02.9]} 63. Kf3 {[%clk 0:00:07.9]}
63... Ng5+ {[%clk 0:00:03.7]} 64. Kg2 {[%clk 0:00:08.4]} 64... Kg4 {[%clk
0:00:04.3]} 65. a5 {[%clk 0:00:09.3]} 65... h4 {[%clk 0:00:05.2]} 66. a6 {[%clk
0:00:09.7]} 66... h3+ {[%clk 0:00:06.1]} 67. Kh1 {[%clk 0:00:10.3]} 67... Ne4
{[%clk 0:00:05.1]} 68. a7 {[%clk 0:00:11.2]} 68... Ng3+ {[%clk 0:00:02.4]} 69.
Kh2 {[%clk 0:00:11]} 69... Nf1+ {[%clk 0:00:02.7]} 70. Kg1 {[%clk 0:00:10.7]}
70... h2+ {[%clk 0:00:02.3]} 71. Kg2 {[%clk 0:00:11.3]} 71... Ng3 {[%clk
0:00:01.8]} 72. Kxh2 {[%clk 0:00:10.6]} 1-0

[Event "*** Titled Tuesday Blitz"]
[Site "Chess.com"]
[Date "2021.03.02"]
[Round "2"]
[White "bocah_sakit"]
[Black "KonstantinB_1983"]
[Result "1-0"]
[WhiteElo "2863"]
[BlackElo "2543"]
[TimeControl "180+1"]
[EndTime "10:19:18 PST"]
[Termination "bocah_sakit won by checkmate"]

1. e4 {[%clk 0:03:00.9]} 1... c6 {[%clk 0:02:59.1]} 2. d4 {[%clk 0:03:00.5]}
2... d5 {[%clk 0:02:59.4]} 3. Nd2 {[%clk 0:03:00.6]} 3... dxe4 {[%clk
0:02:59.1]} 4. Nxe4 {[%clk 0:03:01.5]} 4... Nf6 {[%clk 0:02:59.4]} 5. Nxf6+
{[%clk 0:03:02.1]} 5... exf6 {[%clk 0:02:59.9]} 6. c3 {[%clk 0:03:03]} 6... Bd6
{[%clk 0:03:00]} 7. Bd3 {[%clk 0:03:03.9]} 7... O-O {[%clk 0:02:59.1]} 8. Qc2
{[%clk 0:03:04.8]} 8... Re8+ {[%clk 0:02:59.1]} 9. Ne2 {[%clk 0:03:05.5]} 9...
h5 {[%clk 0:02:59]} 10. O-O {[%clk 0:03:06.1]} 10... Nd7 {[%clk 0:02:55.5]} 11.
Bf4 {[%clk 0:03:06]} 11... Qc7 {[%clk 0:02:50.1]} 12. Bxd6 {[%clk 0:03:04]}
12... Qxd6 {[%clk 0:02:49.7]} 13. Rfe1 {[%clk 0:03:03.8]} 13... Nf8 {[%clk
0:02:50]} 14. g3 {[%clk 0:02:54]} 14... Bg4 {[%clk 0:02:46.4]} 15. Nf4 {[%clk
0:02:52.5]} 15... Rad8 {[%clk 0:02:41.4]} 16. Bf5 {[%clk 0:02:48]} 16... Bxf5
{[%clk 0:02:35.9]} 17. Qxf5 {[%clk 0:02:48.9]} 17... g6 {[%clk 0:02:36]} 18. Qd3
{[%clk 0:02:46.1]} 18... Kg7 {[%clk 0:02:33.4]} 19. h4 {[%clk 0:02:45.8]} 19...
Nd7 {[%clk 0:02:25.3]} 20. Qf3 {[%clk 0:02:35.8]} 20... Nf8 {[%clk 0:02:19.3]}
21. Nd3 {[%clk 0:02:32]} 21... b6 {[%clk 0:02:10.2]} 22. Qf4 {[%clk 0:02:05.6]}
22... Qd7 {[%clk 0:02:02.8]} 23. Rad1 {[%clk 0:01:45.7]} 23... Ne6 {[%clk
0:02:02.1]} 24. Qf3 {[%clk 0:01:45]} 24... Nc7 {[%clk 0:01:55.6]} 25. Nb4 {[%clk
0:01:41.5]} 25... Rxe1+ {[%clk 0:01:52.7]} 26. Rxe1 {[%clk 0:01:41.6]} 26... c5
{[%clk 0:01:50.9]} 27. Nc6 {[%clk 0:01:26.5]} 27... Rf8 {[%clk 0:01:40.2]} 28.
dxc5 {[%clk 0:01:16.9]} 28... bxc5 {[%clk 0:01:29.9]} 29. Nxa7 {[%clk
0:01:02.5]} 29... Ne6 {[%clk 0:01:27.1]} 30. Nc6 {[%clk 0:00:57.1]} 30... Rc8
{[%clk 0:01:24.1]} 31. Na5 {[%clk 0:00:55.7]} 31... Qa4 {[%clk 0:01:23.1]} 32.
Rxe6 {[%clk 0:00:40.9]} 32... Qxa5 {[%clk 0:01:21.7]} 33. Qxf6+ {[%clk
0:00:40.3]} 33... Kg8 {[%clk 0:01:21]} 34. Re7 {[%clk 0:00:39.6]} 34... Qxa2
{[%clk 0:01:18.9]} 35. Kh2 {[%clk 0:00:32.8]} 35... Rf8 {[%clk 0:01:08.1]} 36.
Rb7 {[%clk 0:00:27.3]} 36... Qd5 {[%clk 0:01:06.7]} 37. Rb5 {[%clk 0:00:21.7]}
37... Rc8 {[%clk 0:00:59.8]} 38. b4 {[%clk 0:00:17]} 38... Qc4 {[%clk
0:00:54.2]} 39. Rxc5 {[%clk 0:00:10.5]} 39... Rxc5 {[%clk 0:00:53.9]} 40. bxc5
{[%clk 0:00:08.7]} 40... Qxc5 {[%clk 0:00:53.5]} 41. Qd8+ {[%clk 0:00:08.6]}
41... Kh7 {[%clk 0:00:52.3]} 42. Qf6 {[%clk 0:00:08.9]} 42... Kg8 {[%clk
0:00:46.2]} 43. Qd8+ {[%clk 0:00:09.1]} 43... Kh7 {[%clk 0:00:45.6]} 44. Qd4
{[%clk 0:00:09.8]} 44... Qc6 {[%clk 0:00:43.5]} 45. c4 {[%clk 0:00:10.1]} 45...
Qf3 {[%clk 0:00:39.4]} 46. c5 {[%clk 0:00:09.9]} 46... Kg8 {[%clk 0:00:35.1]}
47. Qd8+ {[%clk 0:00:09.4]} 47... Kg7 {[%clk 0:00:33.8]} 48. Qd4+ {[%clk
0:00:09.9]} 48... Kg8 {[%clk 0:00:32.8]} 49. Qf4 {[%clk 0:00:10]} 49... Qc3
{[%clk 0:00:30.1]} 50. Qd6 {[%clk 0:00:06.7]} 50... Qc2 {[%clk 0:00:29.4]} 51.
Kg1 {[%clk 0:00:05.9]} 51... Qc1+ {[%clk 0:00:28]} 52. Kh2 {[%clk 0:00:06.2]}
52... Qc2 {[%clk 0:00:27.9]} 53. Kg2 {[%clk 0:00:05.9]} 53... Qe4+ {[%clk
0:00:27.6]} 54. Kf1 {[%clk 0:00:06.6]} 54... Qc2 {[%clk 0:00:23.7]} 55. c6
{[%clk 0:00:06.2]} 55... Qb1+ {[%clk 0:00:23.7]} 56. Ke2 {[%clk 0:00:06.7]}
56... Qc2+ {[%clk 0:00:23.7]} 57. Ke3 {[%clk 0:00:07.3]} 57... Qc3+ {[%clk
0:00:23.3]} 58. Ke4 {[%clk 0:00:07.9]} 58... Qc4+ {[%clk 0:00:23.2]} 59. Ke5
{[%clk 0:00:08.6]} 59... Qc3+ {[%clk 0:00:20.5]} 60. Kd5 {[%clk 0:00:09.1]}
60... Qf3+ {[%clk 0:00:18.1]} 61. Kc5 {[%clk 0:00:09.5]} 61... Qa3+ {[%clk
0:00:18.2]} 62. Kd5 {[%clk 0:00:10.1]} 62... Qf3+ {[%clk 0:00:18]} 63. Ke5
{[%clk 0:00:10.2]} 63... Qc3+ {[%clk 0:00:17.1]} 64. Kf4 {[%clk 0:00:10.4]}
64... Qc4+ {[%clk 0:00:16.5]} 65. Kg5 {[%clk 0:00:04.4]} 65... Kg7 {[%clk
0:00:14.4]} 66. Qf6+ {[%clk 0:00:03.5]} 66... Kg8 {[%clk 0:00:14.3]} 67. Qd8+
{[%clk 0:00:03.1]} 67... Kg7 {[%clk 0:00:14]} 68. Qf6+ {[%clk 0:00:03.5]} 68...
Kg8 {[%clk 0:00:13.9]} 69. Kh6 {[%clk 0:00:03.7]} 69... Qc1+ {[%clk 0:00:12.6]}
70. f4 {[%clk 0:00:04.4]} 70... Kf8 {[%clk 0:00:09.6]} 71. Qd8# {[%clk
0:00:04.6]} 1-0

[Event "*** Titled Tuesday Blitz"]
[Site "Chess.com"]
[Date "2021.03.02"]
[Round "2"]
[White "Babujj"]
[Black "Fraler15"]
[Result "1-0"]
[WhiteElo "2474"]
[BlackElo "2269"]
[TimeControl "180+1"]
[EndTime "10:19:25 PST"]
[Termination "Babujj won by checkmate"]

1. e4 {[%clk 0:03:00.2]} 1... c5 {[%clk 0:02:59.7]} 2. Nf3 {[%clk 0:03:00.3]}
2... e6 {[%clk 0:02:59.7]} 3. d4 {[%clk 0:03:00.7]} 3... cxd4 {[%clk 0:03:00.6]}
4. Nxd4 {[%clk 0:03:01.6]} 4... Nf6 {[%clk 0:03:00.7]} 5. Nc3 {[%clk 0:03:01.5]}
5... Nc6 {[%clk 0:03:01]} 6. Nxc6 {[%clk 0:03:01.3]} 6... bxc6 {[%clk
0:03:01.9]} 7. e5 {[%clk 0:03:01]} 7... Nd5 {[%clk 0:03:02.1]} 8. Ne4 {[%clk
0:03:01.7]} 8... Qc7 {[%clk 0:03:02.5]} 9. f4 {[%clk 0:03:01.8]} 9... Qb6 {[%clk
0:03:02.8]} 10. c4 {[%clk 0:03:02.2]} 10... Bb4+ {[%clk 0:03:02.9]} 11. Ke2
{[%clk 0:03:02.5]} 11... f5 {[%clk 0:03:03.1]} 12. exf6 {[%clk 0:03:01]} 12...
Nxf6 {[%clk 0:03:03.1]} 13. Nxf6+ {[%clk 0:03:00.2]} 13... gxf6 {[%clk 0:03:04]}
14. a3 {[%clk 0:02:58.4]} 14... Be7 {[%clk 0:02:46.2]} 15. b4 {[%clk 0:02:53.4]}
15... Ba6 {[%clk 0:02:43.3]} 16. Kf3 {[%clk 0:02:52.3]} 16... c5 {[%clk
0:02:39.1]} 17. Be3 {[%clk 0:02:46.8]} 17... Bb7+ {[%clk 0:02:37.2]} 18. Kg3
{[%clk 0:02:45.2]} 18... Qc6 {[%clk 0:02:31.4]} 19. Qh5+ {[%clk 0:02:29.6]}
19... Kd8 {[%clk 0:02:27.5]} 20. Rg1 {[%clk 0:02:22.5]} 20... cxb4 {[%clk
0:02:20.8]} 21. axb4 {[%clk 0:02:19.9]} 21... Bxb4 {[%clk 0:02:20.1]} 22. Rd1
{[%clk 0:01:53]} 22... Qe4 {[%clk 0:02:05.5]} 23. Bd4 {[%clk 0:01:48.9]} 23...
Rg8+ {[%clk 0:02:02.1]} 24. Kh3 {[%clk 0:01:46.6]} 24... Qxf4 {[%clk 0:01:34.5]}
25. g3 {[%clk 0:01:33]} 25... Qf3 {[%clk 0:01:06.5]} 26. Qxf3 {[%clk 0:01:23.3]}
26... Bxf3 {[%clk 0:01:07.4]} 27. Bxf6+ {[%clk 0:01:22.9]} 27... Be7 {[%clk
0:01:04]} 28. Bxe7+ {[%clk 0:01:17.8]} 28... Kxe7 {[%clk 0:01:04.9]} 29. Rd4
{[%clk 0:01:13.4]} 29... a5 {[%clk 0:01:00.6]} 30. Bd3 {[%clk 0:01:11.3]} 30...
a4 {[%clk 0:00:58.3]} 31. Rf4 {[%clk 0:01:03.1]} 31... Bc6 {[%clk 0:00:55]} 32.
Bxh7 {[%clk 0:00:45.9]} 32... Rh8 {[%clk 0:00:54.3]} 33. Rh4 {[%clk 0:00:46.5]}
33... a3 {[%clk 0:00:50.7]} 34. Ra1 {[%clk 0:00:45]} 34... a2 {[%clk 0:00:43.3]}
35. Bc2 {[%clk 0:00:21]} 35... Rhb8 {[%clk 0:00:42.4]} 36. Rh7+ {[%clk
0:00:19.2]} 36... Kd6 {[%clk 0:00:42.5]} 37. g4 {[%clk 0:00:18.2]} 37... Rb2
{[%clk 0:00:41.6]} 38. Bg6 {[%clk 0:00:17.3]} 38... Rg8 {[%clk 0:00:23.8]} 39.
Rh6 {[%clk 0:00:13.8]} 39... Ba4 {[%clk 0:00:14]} 40. Kg3 {[%clk 0:00:12.2]}
40... Bb3 {[%clk 0:00:14.1]} 41. h4 {[%clk 0:00:11.7]} 41... Rxg6 {[%clk
0:00:11.9]} 42. Rxg6 {[%clk 0:00:12.6]} 42... Rb1 {[%clk 0:00:11.5]} 43. Rxa2
{[%clk 0:00:13.2]} 43... Bxa2 {[%clk 0:00:11.5]} 44. h5 {[%clk 0:00:13.7]} 44...
Rb8 {[%clk 0:00:09.7]} 45. h6 {[%clk 0:00:12.7]} 45... Bb1 {[%clk 0:00:09.1]}
46. Rg7 {[%clk 0:00:12.2]} 46... Rh8 {[%clk 0:00:08.7]} 47. g5 {[%clk
0:00:12.5]} 47... Ke5 {[%clk 0:00:08.6]} 48. Kg4 {[%clk 0:00:11.3]} 48... Bf5+
{[%clk 0:00:06.5]} 49. Kh5 {[%clk 0:00:09.9]} 49... d5 {[%clk 0:00:04.3]} 50.
cxd5 {[%clk 0:00:10.8]} 50... exd5 {[%clk 0:00:05.2]} 51. Re7+ {[%clk
0:00:09.7]} 51... Kf4 {[%clk 0:00:04.7]} 52. g6 {[%clk 0:00:08.8]} 52... d4
{[%clk 0:00:02.8]} 53. g7 {[%clk 0:00:08]} 53... Rg8 {[%clk 0:00:03.2]} 54. Rf7
{[%clk 0:00:07.1]} 54... Ke5 {[%clk 0:00:02.8]} 55. Rxf5+ {[%clk 0:00:04.8]}
55... Kxf5 {[%clk 0:00:02.7]} 56. h7 {[%clk 0:00:05.5]} 56... Rxg7 {[%clk
0:00:01.8]} 57. h8=Q {[%clk 0:00:06.1]} 57... Rf7 {[%clk 0:00:02]} 58. Kh4
{[%clk 0:00:03.2]} 58... Ke6 {[%clk 0:00:02.9]} 59. Qxd4 {[%clk 0:00:03.1]}
59... Rd7 {[%clk 0:00:02.9]} 60. Qe4+ {[%clk 0:00:03.5]} 60... Kd6 {[%clk
0:00:03.5]} 61. Kg5 {[%clk 0:00:04]} 61... Kc7 {[%clk 0:00:04.4]} 62. Kf6 {[%clk
0:00:03.5]} 62... Kd8 {[%clk 0:00:05.3]} 63. Qa8+ {[%clk 0:00:03.4]} 63... Kc7
{[%clk 0:00:05.2]} 64. Ke6 {[%clk 0:00:03.7]} 64... Rd6+ {[%clk 0:00:05]} 65.
Ke5 {[%clk 0:00:04.3]} 65... Rd7 {[%clk 0:00:05.2]} 66. Qa7+ {[%clk 0:00:03.8]}
66... Kd8 {[%clk 0:00:06.1]} 67. Qb8+ {[%clk 0:00:03.9]} 67... Ke7 {[%clk
0:00:06.1]} 68. Qg8 {[%clk 0:00:03.9]} 68... Rd8 {[%clk 0:00:03.8]} 69. Qg7+
{[%clk 0:00:04.1]} 69... Ke8 {[%clk 0:00:04.7]} 70. Ke6 {[%clk 0:00:04]} 70...
Rd6+ {[%clk 0:00:02.4]} 71. Kxd6 {[%clk 0:00:03.8]} 71... Kd8 {[%clk 0:00:03.3]}
72. Qd7# {[%clk 0:00:04.5]} 1-0

[Event "*** Titled Tuesday Blitz"]
[Site "Chess.com"]
[Date "2021.03.02"]
[Round "2"]
[White "alexrustemov"]
[Black "XanoushX_X"]
[Result "1-0"]
[WhiteElo "2725"]
[BlackElo "2498"]
[TimeControl "180+1"]
[EndTime "10:19:26 PST"]
[Termination "alexrustemov won by checkmate"]

1. d4 {[%clk 0:03:00.9]} 1... d5 {[%clk 0:02:58.2]} 2. c4 {[%clk 0:03:00.3]}
2... c6 {[%clk 0:02:58.6]} 3. Nc3 {[%clk 0:03:00.1]} 3... Nf6 {[%clk 0:02:57.5]}
4. e3 {[%clk 0:03:00.4]} 4... e6 {[%clk 0:02:56.9]} 5. Nf3 {[%clk 0:03:00.5]}
5... a6 {[%clk 0:02:57]} 6. b3 {[%clk 0:02:56]} 6... Bb4 {[%clk 0:02:56.5]} 7.
Bd2 {[%clk 0:02:49.6]} 7... O-O {[%clk 0:02:55.9]} 8. Bd3 {[%clk 0:02:48.1]}
8... Nbd7 {[%clk 0:02:55.5]} 9. O-O {[%clk 0:02:47.4]} 9... Bd6 {[%clk
0:02:55.9]} 10. Qc2 {[%clk 0:02:47]} 10... e5 {[%clk 0:02:55]} 11. cxd5 {[%clk
0:02:42.7]} 11... cxd5 {[%clk 0:02:55.9]} 12. dxe5 {[%clk 0:02:38.7]} 12... Nxe5
{[%clk 0:02:56.8]} 13. Nxe5 {[%clk 0:02:36.3]} 13... Bxe5 {[%clk 0:02:57.7]} 14.
h3 {[%clk 0:02:34.7]} 14... d4 {[%clk 0:02:54]} 15. exd4 {[%clk 0:02:29.7]}
15... Bxd4 {[%clk 0:02:47.7]} 16. Rad1 {[%clk 0:02:26.7]} 16... Qc7 {[%clk
0:02:34.1]} 17. Ne4 {[%clk 0:02:11.3]} 17... Qxc2 {[%clk 0:02:31.8]} 18. Bxc2
{[%clk 0:02:08.7]} 18... Be6 {[%clk 0:01:58.9]} 19. Nxf6+ {[%clk 0:02:00.6]}
19... Bxf6 {[%clk 0:01:58]} 20. Be4 {[%clk 0:02:01.2]} 20... Rac8 {[%clk
0:01:48.5]} 21. Be3 {[%clk 0:01:28.6]} 21... b5 {[%clk 0:01:22]} 22. Bb7 {[%clk
0:01:26.1]} 22... Rc2 {[%clk 0:01:21.3]} 23. Rd2 {[%clk 0:01:26.7]} 23... Rxd2
{[%clk 0:01:13]} 24. Bxd2 {[%clk 0:01:27.6]} 24... Rd8 {[%clk 0:01:13.1]} 25.
Ba5 {[%clk 0:01:20.3]} 25... Rd6 {[%clk 0:01:11.1]} 26. Rc1 {[%clk 0:01:16.8]}
26... h6 {[%clk 0:00:54]} 27. Kf1 {[%clk 0:01:16.1]} 27... Bd4 {[%clk
0:00:33.4]} 28. Rd1 {[%clk 0:01:12.2]} 28... f5 {[%clk 0:00:15.8]} 29. Bb4
{[%clk 0:01:10.9]} 29... Rb6 {[%clk 0:00:13.6]} 30. Rxd4 {[%clk 0:00:48]} 30...
Rxb7 {[%clk 0:00:13.6]} 31. Rd6 {[%clk 0:00:48.5]} 31... Kf7 {[%clk 0:00:14.5]}
32. Rxa6 {[%clk 0:00:48]} 32... Rd7 {[%clk 0:00:15.1]} 33. Ke2 {[%clk
0:00:47.3]} 33... Rd5 {[%clk 0:00:15.2]} 34. f4 {[%clk 0:00:43.3]} 34... g5
{[%clk 0:00:15.2]} 35. g3 {[%clk 0:00:42.7]} 35... gxf4 {[%clk 0:00:15]} 36.
gxf4 {[%clk 0:00:43.6]} 36... Rd4 {[%clk 0:00:15.6]} 37. Bd6 {[%clk 0:00:40.1]}
37... Re4+ {[%clk 0:00:14.8]} 38. Kf2 {[%clk 0:00:36.9]} 38... Bd5 {[%clk
0:00:15.7]} 39. Be5 {[%clk 0:00:34.8]} 39... b4 {[%clk 0:00:14.4]} 40. Rf6+
{[%clk 0:00:34.1]} 40... Kg7 {[%clk 0:00:14.2]} 41. Rxf5+ {[%clk 0:00:34.9]}
41... Kg6 {[%clk 0:00:13.9]} 42. Rf6+ {[%clk 0:00:34.4]} 42... Kh5 {[%clk
0:00:14.8]} 43. Rd6 {[%clk 0:00:31.6]} 43... Bb7 {[%clk 0:00:14.3]} 44. Rd4
{[%clk 0:00:31.1]} 44... Rxd4 {[%clk 0:00:14.1]} 45. Bxd4 {[%clk 0:00:31.7]}
45... Bc8 {[%clk 0:00:14.1]} 46. Kg3 {[%clk 0:00:31.2]} 46... Bf5 {[%clk
0:00:14.5]} 47. Bb2 {[%clk 0:00:24.6]} 47... Bb1 {[%clk 0:00:14.9]} 48. a4
{[%clk 0:00:24.1]} 48... bxa3 {[%clk 0:00:15.8]} 49. Bxa3 {[%clk 0:00:24.4]}
49... Ba2 {[%clk 0:00:16.7]} 50. b4 {[%clk 0:00:24.4]} 50... Bc4 {[%clk
0:00:17.6]} 51. Bc1 {[%clk 0:00:20.2]} 51... Bb5 {[%clk 0:00:18.5]} 52. f5
{[%clk 0:00:19.6]} 52... Bd7 {[%clk 0:00:18.1]} 53. f6 {[%clk 0:00:19.3]} 53...
Kg6 {[%clk 0:00:18.1]} 54. Bb2 {[%clk 0:00:19.7]} 54... h5 {[%clk 0:00:17.8]}
55. h4 {[%clk 0:00:19.9]} 55... Kf5 {[%clk 0:00:17.3]} 56. Kf3 {[%clk
0:00:20.2]} 56... Ke6 {[%clk 0:00:16.7]} 57. Kf4 {[%clk 0:00:20.2]} 57... Bb5
{[%clk 0:00:16.3]} 58. Kg5 {[%clk 0:00:20.4]} 58... Be8 {[%clk 0:00:16]} 59. Kh6
{[%clk 0:00:17.7]} 59... Kf7 {[%clk 0:00:15.3]} 60. Kxh5 {[%clk 0:00:17.5]}
60... Kg8+ {[%clk 0:00:15.8]} 61. Kg5 {[%clk 0:00:18]} 61... Bb5 {[%clk
0:00:16.4]} 62. h5 {[%clk 0:00:18.4]} 62... Bd3 {[%clk 0:00:16.6]} 63. h6 {[%clk
0:00:18.6]} 63... Bb5 {[%clk 0:00:17.2]} 64. Bc3 {[%clk 0:00:18.2]} 64... Bd3
{[%clk 0:00:18.1]} 65. Bd2 {[%clk 0:00:18]} 65... Bb5 {[%clk 0:00:19]} 66. Kf5
{[%clk 0:00:18.3]} 66... Bd3+ {[%clk 0:00:19.9]} 67. Ke5 {[%clk 0:00:18.6]}
67... Kf7 {[%clk 0:00:20.8]} 68. Bg5 {[%clk 0:00:18.7]} 68... Bh7 {[%clk
0:00:20.4]} 69. Kd4 {[%clk 0:00:19]} 69... Kg6 {[%clk 0:00:19.7]} 70. b5 {[%clk
0:00:18.5]} 70... Bg8 {[%clk 0:00:19.6]} 71. b6 {[%clk 0:00:17.7]} 71... Kxg5
{[%clk 0:00:20.5]} 72. b7 {[%clk 0:00:17.5]} 72... Kxf6 {[%clk 0:00:21.4]} 73.
b8=Q {[%clk 0:00:17.2]} 73... Bf7 {[%clk 0:00:22.3]} 74. h7 {[%clk 0:00:13.8]}
74... Kg6 {[%clk 0:00:23.2]} 75. h8=Q {[%clk 0:00:13.1]} 75... Be6 {[%clk
0:00:24.1]} 76. Qg3+ {[%clk 0:00:11.7]} 76... Kf5 {[%clk 0:00:24]} 77. Qh5+
{[%clk 0:00:11.2]} 77... Kf6 {[%clk 0:00:23.6]} 78. Qgg5# {[%clk 0:00:12.1]} 1-0